bitfinex/quotes_ETHUSD_20251025
["timestamp","ask_amount","ask_price","bid_price","bid_amount"]
[1761367940586,0.001,3928.0,3927.9,3.74465037]
[1761367941886,0.001,3928.0,3927.9,3.77010926]
[1761367944862,0.001,3928.0,3927.9,3.87204826]
[1761367945887,0.001,3928.0,3927.9,4.37892826]
[1761367947663,0.001,3928.0,3927.9,4.35346937]
[1761367955310,0.001,3928.0,3927.9,7.54646937]
[1761367956980,0.001,3928.0,3927.9,7.54846937]
[1761367958008,0.001,3928.0,3927.9,9.10366937]
[1761367958213,0.001,3928.0,3927.9,10.02076078]
[1761367959494,0.001,3928.0,3927.9,9.10366937]
[1761367959894,0.001,3928.0,3927.9,10.02076078]
[1761367962296,0.001,3928.0,3927.9,9.10366937]
[1761367967246,0.001,3928.0,3927.9,10.47532822]
[1761367967839,0.001,3928.4,3928.3,3.05251042]
[1761367968142,0.001,3928.4,3928.3,11.32592222]
[1761367968345,0.001,3928.4,3928.3,11.30046592]
[1761367968524,0.001,3928.4,3928.3,11.40238025]
[1761367968724,0.001,3928.4,3928.3,12.95758025]
[1761367968924,0.001,3928.4,3928.3,14.84861157]
[1761367970827,0.001,3928.4,3928.3,16.21807001]
[1761367971846,0.001,3928.4,3928.3,14.84861157]
[1761367972050,0.001,3928.4,3928.3,16.21807001]
[1761367974454,0.001,3928.4,3928.3,14.84861157]
[1761367975217,0.001,3928.4,3928.3,16.21807001]
[1761367976153,0.001,3928.4,3928.3,14.84861157]
[1761367976354,0.001,3928.4,3928.3,16.21807001]
[1761367978973,0.001,3928.4,3928.3,16.34491498]
[1761367979174,1e-08,3928.6,3928.5,3.05238082]
[1761367979374,1e-08,3928.6,3928.5,3.72457732]
[1761367979574,1e-08,3928.6,3928.5,4.28147732]
[1761367979774,1e-08,3928.6,3928.5,4.25602232]
[1761367979982,1e-08,3928.6,3928.5,4.35793327]
[1761367982078,1e-08,3928.6,3928.5,4.38338827]
[1761367985295,1e-08,3928.6,3928.5,4.35793327]
[1761367986178,1e-08,3928.6,3928.5,5.72739171]
[1761367989886,1e-08,3928.6,3928.5,5.29769171]
[1761367991285,1e-08,3928.6,3928.5,5.74799171]
[1761367992108,1e-08,3928.6,3928.5,5.74999171]
[1761367992414,1e-08,3928.6,3928.5,5.29969171]
[1761367993815,1e-08,3928.6,3928.5,5.74999171]
[1761367994282,1e-08,3928.6,3928.5,4.38053327]
[1761367994486,1e-08,3928.6,3928.5,4.40598827]
[1761367995032,1e-08,3928.6,3928.5,4.38053327]
[1761367996895,1e-08,3928.6,3928.5,8.11295434]
[1761368001655,1e-08,3928.6,3928.5,8.01104339]
[1761368008858,1e-08,3928.6,3928.5,7.56074339]
[1761368013449,0.44250001,3928.6,3928.5,7.56074339]
[1761368014088,1e-08,3928.6,3928.5,7.56074339]
[1761368019905,1e-08,3928.6,3928.5,7.05386339]
[1761368020067,0.44250001,3928.6,3928.5,10.97273401]
[1761368021564,0.44250001,3928.6,3928.5,9.59912189]
[1761368022593,1e-08,3928.6,3928.5,10.97273401]
[1761368022894,1e-08,3928.6,3928.5,12.23433622]
[1761368024016,0.44250001,3928.6,3928.5,9.59912189]
[1761368030600,1e-08,3928.6,3928.5,9.59912189]
[1761368031013,1e-08,3928.6,3928.5,10.97273401]
[1761368031838,1e-08,3928.6,3928.5,11.92781401]
[1761368032195,1e-08,3928.6,3928.5,10.55420189]
[1761368032422,1e-08,3928.6,3928.5,12.07657177]
[1761368032989,1e-08,3928.6,3928.5,12.33147177]
[1761368033320,1e-08,3928.6,3928.5,12.07657177]
[1761368037730,1e-08,3928.6,3928.5,13.00110297]
[1761368041028,1e-08,3928.6,3928.5,11.62837177]
[1761368042445,0.44200001,3928.6,3928.5,11.62837177]
[1761368042610,0.44200001,3928.6,3928.5,13.00118754]
[1761368042814,0.44200001,3928.6,3928.5,11.62837177]
[1761368043413,0.44200001,3928.6,3928.5,13.00118754]
[1761368044354,1e-08,3928.6,3928.5,11.62837177]
[1761368045254,1e-08,3928.6,3928.5,13.00118754]
[1761368046364,1e-08,3928.6,3928.5,11.62837177]
[1761368046662,1e-08,3928.6,3928.5,12.09097177]
[1761368053066,1e-08,3928.6,3928.5,4.04758544]
[1761368053281,0.43340001,3928.6,3928.5,3.46301535]
[1761368053585,0.43340001,3928.6,3928.5,2.54750082]
[1761368054079,0.43340001,3928.6,3928.5,3.23424559]
[1761368054385,0.43340001,3928.6,3928.5,2.54750082]
[1761368059200,0.43340001,3928.6,3928.5,0.002]
[1761368059787,0.43340001,3928.6,3928.5,2.54750082]
[1761368062099,1e-08,3928.6,3928.5,2.54750082]
[1761368062305,0.43340001,3928.6,3928.5,2.54750082]
[1761368063177,0.43340001,3928.6,3928.5,2.67470082]
[1761368065695,1e-08,3928.6,3928.5,2.67470082]
[1761368065907,1e-08,3928.6,3928.5,2.70015582]
[1761368066276,1e-08,3928.6,3928.5,2.67470082]
[1761368067386,0.43340001,3928.6,3928.5,2.67470082]
[1761368076191,0.43340001,3928.6,3928.5,0.1292]
[1761368077495,0.43340001,3928.6,3928.5,2.67470082]
[1761368078433,0.43340001,3928.6,3928.5,0.1292]
[1761368078729,0.43340001,3928.6,3928.5,0.002]
[1761368078933,0.43340001,3928.6,3928.5,2.54750082]
[1761368079901,0.43340001,3928.6,3928.5,0.002]
[1761368082026,0.76789575,3928.6,3928.5,0.002]
[1761368100954,4.86853178,3928.6,3928.5,0.002]
[1761368108493,8.06153178,3928.6,3928.5,0.002]
[1761368109201,4.86853178,3928.6,3928.5,0.002]
[1761368109385,8.06153178,3928.6,3928.5,0.002]
[1761368110300,4.86853178,3928.6,3928.5,0.002]
[1761368110599,8.06153178,3928.6,3928.5,0.002]
[1761368110776,4.86853178,3928.6,3928.5,0.002]
[1761368110978,8.06153178,3928.6,3928.5,0.002]
[1761368125040,11.79726285,3928.6,3928.5,0.002]
[1761368127906,13.69726285,3928.6,3928.5,0.002]
[1761368128108,11.79726285,3928.6,3928.5,0.002]
[1761368129965,12.48377995,3928.6,3928.5,0.002]
[1761368132543,8.74804888,3928.6,3928.5,0.002]
[1761368132861,9.96153178,3928.6,3928.5,0.002]
[1761368133082,10.46841178,3928.6,3928.5,0.002]
[1761368133392,10.57039081,3928.6,3928.5,0.002]
[1761368133660,14.20414285,3928.6,3928.5,0.002]
[1761368134054,12.30414285,3928.6,3928.5,0.002]
[1761368136181,9.11114285,3928.6,3928.5,0.002]
[1761368136374,12.30414285,3928.6,3928.5,0.002]
[1761368137975,14.20414285,3928.6,3928.5,0.002]
[1761368143697,14.45658682,3928.6,3928.5,0.002]
[1761368143886,14.89068682,3928.6,3928.5,0.002]
[1761368150106,14.20484285,3928.6,3928.5,0.002]
[1761368155091,15.1201007,3928.6,3928.5,0.002]
[1761368155288,15.22207973,3928.6,3928.5,0.002]
[1761368156506,11.48634866,3928.6,3928.5,0.002]
[1761368157721,7.25038963,3928.6,3928.5,0.002]
[1761368158037,9.52813178,3928.6,3928.5,0.002]
[1761368160853,9.19363604,3928.6,3928.5,0.4578]
[1761368161055,9.88050268,3928.6,3928.5,0.4578]
[1761368161233,9.19363604,3928.6,3928.5,0.4578]
[1761368161431,9.19363604,3928.6,3928.5,0.002]
[1761368161650,8.09415,3928.6,3928.5,0.002]
[1761368161950,11.28715,3928.6,3928.5,0.002]
[1761368162318,12.20240785,3928.6,3928.5,0.002]
[1761368162754,9.00940785,3928.6,3928.5,0.002]
[1761368162925,12.20240785,3928.6,3928.5,0.002]
[1761368163246,9.00940785,3928.6,3928.5,0.002]
[1761368163654,12.20240785,3928.6,3928.5,0.002]
[1761368166651,11.76090785,3928.6,3928.5,0.002]
[1761368172484,12.20240785,3928.6,3928.5,0.002]
[1761368176768,11.76090785,3928.6,3928.5,0.002]
[1761368181116,8.56790785,3928.6,3928.5,0.002]
[1761368181398,10.84565,3928.6,3928.5,0.4307]
[1761368184404,10.84565,3928.6,3928.5,0.002]
[1761368187389,10.84565,3928.6,3928.5,0.4307]
[1761368187897,10.84565,3928.6,3928.5,0.002]
[1761368193116,11.76090785,3928.6,3928.5,0.002]
[1761368196230,8.56790785,3928.6,3928.5,0.002]
[1761368196436,11.76090785,3928.6,3928.5,0.002]
[1761368203345,12.21640785,3928.6,3928.5,0.002]
[1761368203862,11.76090785,3928.6,3928.5,0.002]
[1761368204042,12.21640785,3928.6,3928.5,0.002]
[1761368206776,12.72328785,3928.6,3928.5,0.002]
[1761368207969,11.80803,3928.6,3928.5,0.002]
[1761368208768,13.17839392,3928.6,3928.5,0.002]
[1761368211350,11.80803,3928.6,3928.5,0.002]
[1761368218872,13.17839392,3928.6,3928.5,0.002]
[1761368219071,12.21914173,3928.6,3928.5,0.002]
[1761368220199,12.32113402,3928.6,3928.5,0.002]
[1761368221182,3.05264003,3928.1,3928.0,0.002]
[1761368221506,3.05264003,3928.1,3927.9,0.002]
[1761368221507,4.10102484,3928.0,3927.9,1e-08]
[1761368221693,4.55652484,3928.0,3927.9,1e-08]
[1761368222114,5.92731572,3928.0,3927.9,1e-08]
[1761368222283,8.18170152,3928.0,3927.9,1e-08]
[1761368225111,6.81091064,3928.0,3927.9,1e-08]
[1761368236311,9.49191064,3928.0,3927.9,1e-08]
[1761368236532,6.81091064,3928.0,3927.9,1e-08]
[1761368238747,10.54989051,3928.0,3927.9,1e-08]
[1761368240814,10.55089051,3928.0,3927.9,1e-08]
[1761368242053,11.92168139,3928.0,3927.9,1e-08]
[1761368244980,15.66066126,3928.0,3927.9,1e-08]
[1761368245359,14.28987038,3928.0,3927.9,1e-08]
[1761368246054,10.55089051,3928.0,3927.9,1e-08]
[1761368254385,10.09539051,3928.0,3927.9,1e-08]
[1761368259411,13.79527051,3928.0,3927.9,0.44840001]
[1761368260368,13.79527051,3928.0,3927.9,1e-08]
[1761368260969,17.98905038,3928.0,3927.9,1e-08]
[1761368261179,20.26903259,3928.0,3927.9,1e-08]
[1761368262114,18.43945038,3928.0,3927.9,1e-08]
[1761368262789,17.98465038,3928.0,3927.9,1e-08]
[1761368262995,14.24567051,3928.0,3927.9,1e-08]
[1761368265228,13.79527051,3928.0,3927.9,1e-08]
[1761368265603,13.89727476,3928.0,3927.9,1e-08]
[1761368265804,14.35207476,3928.0,3927.9,1e-08]
[1761368270945,3.05289929,3927.7,3927.6,1e-08]
[1761368271142,11.66727916,3927.7,3927.6,1e-08]
[1761368271354,12.11847916,3927.7,3927.6,1e-08]
[1761368272415,15.85745903,3927.7,3927.6,1e-08]
[1761368272619,15.40625903,3927.7,3927.6,1e-08]
[1761368272825,17.05827299,3927.7,3927.6,1e-08]
[1761368278342,17.48847299,3927.7,3927.6,1e-08]
[1761368279372,17.05827299,3927.7,3927.6,1e-08]
[1761368280643,17.48847299,3927.7,3927.6,1e-08]
[1761368282377,17.05827299,3927.7,3927.6,1e-08]
[1761368283668,17.48847299,3927.7,3927.6,1e-08]
[1761368284375,17.05827299,3927.7,3927.6,1e-08]
[1761368284579,17.48847299,3927.7,3927.6,1e-08]
[1761368287192,17.05827299,3927.7,3927.6,1e-08]
[1761368288991,17.50947299,3927.7,3927.6,1e-08]
[1761368289175,17.05827299,3927.7,3927.6,1e-08]
[1761368290892,17.05927299,3927.7,3927.6,1e-08]
[1761368293696,17.51047299,3927.7,3927.6,1e-08]
[1761368294418,17.05927299,3927.7,3927.6,1e-08]
[1761368300712,14.06849631,3927.7,3927.6,1e-08]
[1761368302357,14.06849631,3927.7,3927.5,0.002]
[1761368302358,4.84946089,3927.6,3927.5,0.002]
[1761368302656,5.59912489,3927.6,3927.5,0.002]
[1761368302999,5.70114111,3927.6,3927.5,0.002]
[1761368305429,6.20802111,3927.6,3927.5,0.002]
[1761368305612,5.79690938,3927.6,3927.5,0.002]
[1761368305935,4.60829378,3927.4,3927.3,1e-08]
[1761368306235,10.16965573,3927.4,3927.3,1e-08]
[1761368323857,10.16965573,3927.4,3927.3,0.68970001]
[1761368324058,13.79062017,3927.4,3927.3,0.68970001]
[1761368325460,10.59762017,3927.4,3927.3,0.68970001]
[1761368325664,13.79062017,3927.4,3927.3,0.68970001]
[1761368325961,10.59862017,3927.4,3927.3,0.68970001]
[1761368326331,13.79162017,3927.4,3927.3,0.68970001]
[1761368333332,15.87582032,3927.4,3927.3,0.68970001]
[1761368338698,13.79162017,3927.4,3927.3,0.68970001]
[1761368343109,12.41667684,3927.4,3927.3,0.68970001]
[1761368343906,9.22367684,3927.4,3927.3,0.68970001]
[1761368344076,12.41667684,3927.4,3927.3,0.68970001]
[1761368346085,4.22961378,3927.4,3927.3,0.69720001]
[1761368346285,7.42261378,3927.4,3927.3,0.69720001]
[1761368351314,4.22961378,3927.4,3927.3,0.69720001]
[1761368351611,7.42261378,3927.4,3927.3,0.69720001]
[1761368352293,7.42161378,3927.4,3927.3,0.69720001]
[1761368360755,11.16038626,3927.4,3927.3,0.69720001]
[1761368363423,11.16038626,3927.4,3927.3,1e-08]
[1761368364361,12.07654506,3927.4,3927.3,1e-08]
[1761368367359,13.93100424,3927.4,3927.3,1e-08]
[1761368373184,13.01484544,3927.4,3927.3,1e-08]
[1761368374746,13.93089741,3927.4,3927.3,1e-08]
[1761368375380,13.01484544,3927.4,3927.3,1e-08]
[1761368376780,13.93100762,3927.4,3927.3,1e-08]
[1761368377485,13.93100762,3927.4,3927.3,0.45790001]
[1761368378881,13.01484544,3927.4,3927.3,1e-08]
[1761368380858,9.27607296,3927.4,3927.3,1e-08]
[1761368383897,10.23075296,3927.4,3927.3,1e-08]
[1761368385272,9.78295296,3927.4,3927.3,1e-08]
[1761368386859,10.69880329,3927.4,3927.3,1e-08]
[1761368387790,9.78295296,3927.4,3927.3,1e-08]
[1761368390188,10.69884729,3927.4,3927.3,1e-08]
[1761368394695,9.78295296,3927.4,3927.3,1e-08]
[1761368401507,4.22961378,3927.4,3927.3,1e-08]
[1761368401712,11.16038626,3927.4,3927.3,0.45790001]
[1761368401907,7.96838626,3927.4,3927.3,0.45790001]
[1761368402110,11.16038626,3927.4,3927.3,0.45790001]
[1761368402503,7.96838626,3927.4,3927.3,0.45790001]
[1761368402704,11.16038626,3927.4,3927.3,0.45790001]
[1761368403513,11.16038626,3927.4,3927.3,1e-08]
[1761368422715,7.42161378,3927.4,3927.3,1e-08]
[1761368425574,9.31422615,3927.4,3927.3,1e-08]
[1761368425739,9.75862615,3927.4,3927.3,1e-08]
[1761368426766,9.31422615,3927.4,3927.3,1e-08]
[1761368432366,7.42161378,3927.4,3927.3,1e-08]
[1761368443850,8.37619378,3927.4,3927.3,1e-08]
[1761368444212,8.37619378,3927.4,3927.1,1e-08]
[1761368444213,4.60842345,3927.2,3927.1,1e-08]
[1761368444700,5.05612345,3927.2,3927.1,1e-08]
[1761368444851,6.94413304,3927.2,3927.1,1e-08]
[1761368453319,8.31463547,3927.2,3927.1,1e-08]
[1761368454120,8.44183547,3927.2,3927.1,1e-08]
[1761368461023,11.12483547,3927.2,3927.1,1e-08]
[1761368461206,8.44183547,3927.2,3927.1,1e-08]
[1761368462929,8.44183547,3927.2,3926.8,1e-08]
[1761368462930,4.10173798,3926.9,3926.8,1e-08]
[1761368463142,12.82136269,3926.9,3926.8,1e-08]
[1761368463706,12.92340051,3926.9,3926.8,1e-08]
[1761368464207,12.00963391,3926.9,3926.8,1e-08]
[1761368465945,12.00625993,3926.9,3926.8,1e-08]
[1761368466240,13.61417464,3926.9,3926.8,1e-08]
[1761368466816,14.06197464,3926.9,3926.8,1e-08]
[1761368468342,13.61417464,3926.9,3926.8,1e-08]
[1761368468946,9.12751653,3926.9,3926.8,1e-08]
[1761368469110,13.99385464,3926.9,3926.8,1e-08]
[1761368473025,15.95065707,3926.9,3926.8,1e-08]
[1761368473228,14.58015464,3926.9,3926.8,1e-08]
[1761368479157,14.70735464,3926.9,3926.8,1e-08]
[1761368480356,14.12105464,3926.9,3926.8,1e-08]
[1761368480561,14.12205464,3926.9,3926.8,1e-08]
[1761368482682,13.37579416,3926.9,3926.8,1e-08]
[1761368483299,13.27375634,3926.9,3926.8,1e-08]
[1761368489797,13.27375634,3926.9,3926.8,0.44900001]
[1761368489798,9.29947951,3926.9,3926.8,0.44900001]
[1761368490198,4.733444,3926.9,3926.8,0.44900001]
[1761368490522,7.925444,3926.9,3926.8,0.44900001]
[1761368491012,9.29947951,3926.9,3926.8,0.44900001]
[1761368500318,9.29947951,3926.9,3926.8,1e-08]
[1761368500887,9.29947951,3926.9,3926.8,0.45800001]
[1761368505021,9.29947951,3926.9,3926.8,1e-08]
[1761368506298,10.85820805,3926.9,3926.8,1e-08]
[1761368509429,9.29947951,3926.9,3926.8,1e-08]
[1761368516143,9.74017951,3926.9,3926.8,1e-08]
[1761368517030,9.29947951,3926.9,3926.8,1e-08]
[1761368517230,9.74017951,3926.9,3926.8,1e-08]
[1761368518056,8.366144,3926.9,3926.8,1e-08]
[1761368518264,9.86690362,3926.9,3926.8,1e-08]
[1761368521026,9.42620362,3926.9,3926.8,1e-08]
[1761368521742,12.54990362,3926.9,3926.8,1e-08]
[1761368521935,9.86690362,3926.9,3926.8,1e-08]
[1761368526088,9.42620362,3926.9,3926.8,1e-08]
[1761368526587,13.16560125,3926.9,3926.8,0.43890001]
[1761368526792,11.66484163,3926.9,3926.8,0.43890001]
[1761368529107,13.03805216,3926.9,3926.8,0.43890001]
[1761368529862,13.03805216,3926.9,3926.8,1e-08]
[1761368530192,13.03805216,3926.9,3926.8,0.46280001]
[1761368531092,13.03805216,3926.9,3926.8,1e-08]
[1761368531093,14.59659821,3926.9,3926.8,1e-08]
[1761368531290,15.03729821,3926.9,3926.8,1e-08]
[1761368537789,13.66408768,3926.9,3926.8,1e-08]
[1761368543699,13.76612159,3926.9,3926.8,1e-08]
[1761368544403,13.32542159,3926.9,3926.8,1e-08]
[1761368544581,13.76612159,3926.9,3926.8,1e-08]
[1761368544782,14.51445406,3926.9,3926.8,1e-08]
[1761368545607,14.51445406,3926.9,3926.4,0.002]
[1761368545608,3.0536774,3926.5,3926.4,0.002]
[1761368545807,13.78884407,3926.5,3926.4,0.002]
[1761368546006,12.4158075,3926.5,3926.4,0.002]
[1761368546477,12.6407075,3926.5,3926.4,0.002]
[1761368548394,13.0814075,3926.5,3926.4,0.002]
[1761368548623,14.89130443,3926.5,3926.4,0.002]
[1761368549450,15.30241616,3926.5,3926.4,0.002]
[1761368552492,15.65606241,3926.5,3926.4,0.002]
[1761368555841,16.85606241,3926.5,3926.4,0.002]
[1761368562357,8.5912465,3925.7,3925.6,0.4648]
[1761368562653,11.9114465,3925.7,3925.6,0.4648]
[1761368564161,12.4183265,3925.7,3925.6,0.002]
[1761368564355,13.78916904,3925.7,3925.6,0.002]
[1761368564728,13.78916904,3925.7,3925.6,0.4512]
[1761368565237,9.17323894,3925.7,3925.6,0.4512]
[1761368565436,12.2911265,3925.7,3925.6,0.4512]
[1761368569145,4.6093964,3925.7,3925.6,0.002]
[1761368569352,7.8023964,3925.7,3925.6,0.4512]
[1761368569548,4.1025164,3925.7,3925.6,0.4512]
[1761368569752,2.54725935,3925.8,3925.6,0.4512]
[1761368570063,3.194,3925.7,3925.6,0.9024]
[1761368570233,4.7492,3925.7,3925.6,0.9024]
[1761368570662,7.2965164,3925.7,3925.6,0.9024]
[1761368570861,4.7492,3925.7,3925.6,0.9024]
[1761368572057,7.2965164,3925.7,3925.6,0.9024]
[1761368572265,4.7492,3925.7,3925.6,0.9024]
[1761368574043,0.6844697,3926.4,3925.6,0.9024]
[1761368574243,0.6844697,3926.4,3926.3,0.2248]
[1761368574244,3.195,3926.4,3926.3,0.2248]
[1761368574569,7.29706226,3926.4,3926.3,0.2248]
[1761368574765,7.29706226,3926.4,3926.3,1.1272]
[1761368575154,4.7502,3926.4,3926.3,1.1272]
[1761368575361,4.8774,3926.4,3926.3,1.1272]
[1761368576037,5.8774,3926.4,3926.3,1.1272]
[1761368577141,1.1272,3926.4,3926.3,1.1272]
[1761368577342,4.3222,3926.4,3926.3,1.1272]
[1761368577547,5.8774,3926.4,3926.3,1.1272]
[1761368578074,5.7502,3926.4,3926.3,1.1272]
[1761368578237,4.7502,3926.4,3926.3,1.1272]
[1761368578671,1.5552,3926.4,3926.3,1.50733828]
[1761368578963,0.001,3926.5,3926.3,4.05426541]
[1761368579164,0.001,3926.5,3926.4,0.45766862]
[1761368579377,0.001,3926.5,3926.4,2.97906226]
[1761368581345,0.001,3926.5,3926.4,3.74394399]
[1761368582170,0.001,3926.5,3926.4,4.3955111]
[1761368585649,0.001,3926.5,3926.4,4.42097972]
[1761368587351,0.001,3926.5,3926.4,4.3955111]
[1761368587569,0.001,3926.5,3926.4,7.5895111]
[1761368588152,0.001,3926.5,3926.4,5.04264884]
[1761368588968,0.001,3926.5,3926.4,7.5895111]
[1761368589365,0.001,3926.5,3926.4,7.7167111]
[1761368601665,0.001,3926.5,3926.4,5.16984884]
[1761368602014,0.001,3926.5,3926.4,5.16534884]
[1761368602184,0.001,3926.5,3926.4,7.7122111]
[1761368602884,0.001,3926.5,3926.4,4.73764884]
[1761368603284,0.001,3926.5,3926.4,5.16534884]
[1761368603790,0.001,3926.5,3926.4,1.07926711]
[1761368605390,0.001,3926.5,3926.4,0.4277]
[1761368607774,0.001,3926.5,3926.3,3.546]
[1761368607987,0.001,3926.5,3926.3,3.9737]
[1761368608688,0.001,3926.5,3926.4,0.4277]
[1761368611658,0.001,3926.5,3926.3,0.352]
[1761368611864,0.001,3926.5,3926.4,0.4277]
[1761368614375,0.001,3926.5,3926.3,0.1272]
[1761368614589,0.001,3926.5,3926.0,0.002]
[1761368614590,4.10225687,3926.1,3926.0,0.002]
[1761368614788,4.54295687,3926.1,3926.0,0.002]
[1761368615500,7.73995687,3926.1,3926.0,0.002]
[1761368624580,7.86715687,3926.1,3926.0,0.002]
[1761368627112,7.42645687,3926.1,3926.0,0.002]
[1761368627637,4.8794,3926.1,3926.0,0.002]
[1761368627996,4.7522,3926.1,3926.0,0.4561]
[1761368628302,4.7522,3926.1,3926.0,0.002]
[1761368628728,7.29925687,3926.1,3926.0,0.002]
[1761368630327,4.7512,3926.1,3926.0,0.002]
[1761368633426,4.7522,3926.1,3926.0,0.002]
[1761368633946,12.03494941,3926.1,3926.0,0.002]
[1761368634126,12.47564941,3926.1,3926.0,0.002]
[1761368638725,8.73828534,3926.1,3926.0,0.002]
[1761368638928,13.47664941,3926.1,3926.0,0.002]
[1761368643254,14.15846923,3926.1,3926.0,0.002]
[1761368643760,13.47664941,3926.1,3926.0,0.002]
[1761368643957,13.60384941,3926.1,3926.0,0.002]
[1761368644153,14.28566923,3926.1,3926.0,0.002]
[1761368649070,14.28566923,3926.1,3925.6,0.002]
[1761368649071,3.0541964,3925.7,3925.6,1e-08]
[1761368649238,12.41293093,3925.7,3925.6,1e-08]
[1761368649569,12.84043093,3925.7,3925.6,1e-08]
[1761368653251,12.15856047,3925.7,3925.6,1e-08]
[1761368653449,14.00122355,3925.7,3925.6,1e-08]
[1761368655037,13.06684355,3925.7,3925.6,1e-08]
[1761368655269,13.49434355,3925.7,3925.6,1e-08]
[1761368655479,10.29634355,3925.7,3925.6,1e-08]
[1761368655665,13.49534355,3925.7,3925.6,1e-08]
[1761368656455,4.1025164,3925.7,3925.6,1e-08]
[1761368656657,7.3015164,3925.7,3925.6,1e-08]
[1761368656976,11.03988047,3925.7,3925.6,1e-08]
[1761368657343,7.3015164,3925.7,3925.6,1e-08]
[1761368657848,7.3015164,3925.7,3925.6,0.44630001]
[1761368658275,7.3015164,3925.7,3925.6,1e-08]
[1761368658980,5.7463164,3925.7,3925.6,1e-08]
[1761368659185,5.8735164,3925.7,3925.6,1e-08]
[1761368659368,7.4287164,3925.7,3925.6,1e-08]
[1761368659683,4.2297164,3925.7,3925.6,1e-08]
[1761368659865,4.2297164,3925.7,3925.6,0.44630001]
[1761368659866,7.4297164,3925.7,3925.6,0.44630001]
[1761368666786,4.2297164,3925.7,3925.6,1e-08]
[1761368666995,7.4287164,3925.7,3925.6,0.44630001]
[1761368667873,7.4297164,3925.7,3925.6,0.44630001]
[1761368674796,4.8824,3925.7,3925.6,0.44630001]
[1761368675177,7.4297164,3925.7,3925.6,0.44630001]
[1761368678599,4.8824,3925.7,3925.6,0.44630001]
[1761368678762,1.5562,3925.7,3925.6,0.74568753]
[1761368679882,1.5562,3925.7,3925.6,0.44630001]
[1761368683619,0.001,3925.7,3925.6,2.9936813]
[1761368683910,0.001,3925.7,3925.6,3.01915511]
[1761368684643,0.001,3925.7,3925.6,2.9936813]
[1761368688321,0.001,3925.7,3925.6,4.01016578]
[1761368690321,0.001,3925.7,3925.6,1.46278449]
[1761368690501,0.001,3925.7,3925.6,0.57350001]
[1761368691522,0.001,3925.7,3925.6,3.1208813]
[1761368695610,0.001,3925.7,3925.6,0.57350001]
[1761368698832,0.001,3925.7,3925.6,3.1208813]
[1761368699331,0.001,3925.7,3925.6,6.3178813]
[1761368700557,0.001,3925.7,3925.6,7.20442588]
[1761368706892,0.001,3925.7,3925.6,7.71130588]
[1761368707212,0.001,3925.7,3925.6,8.62686252]
[1761368707979,0.001,3925.7,3925.6,7.71130588]
[1761368708136,0.001,3925.7,3925.6,10.6393905]
[1761368708336,0.001,3925.7,3925.6,9.26650588]
[1761368709196,0.001,3925.7,3925.6,10.63866305]
[1761368712103,0.001,3925.7,3925.6,9.26650588]
[1761368714205,0.001,3925.7,3925.6,13.10650588]
[1761368715206,0.001,3925.7,3925.6,14.47866305]
[1761368715510,0.001,3925.7,3925.6,13.10650588]
[1761368722616,0.001,3925.7,3925.6,13.57330078]
[1761368722816,0.001,3925.7,3925.6,18.06250352]
[1761368723016,0.001,3925.7,3925.6,18.50420352]
[1761368723324,0.001,3925.7,3925.6,17.59110862]
[1761368724710,0.001,3925.7,3925.6,17.69309155]
[1761368728814,0.001,3925.7,3925.6,16.94106013]
[1761368729518,0.001,3925.7,3925.6,18.3132173]
[1761368730776,0.001,3926.1,3926.0,3.05400175]
[1761368731091,0.001,3926.1,3926.0,12.00854428]
[1761368731294,0.001,3926.1,3926.0,13.48243024]
[1761368731508,0.001,3926.1,3926.0,13.58440329]
[1761368733202,0.001,3926.1,3926.0,12.21224612]
[1761368733521,0.001,3926.1,3926.0,13.89679779]
[1761368735011,0.001,3926.1,3926.0,17.73679779]
[1761368735618,0.001,3926.1,3926.0,19.10982685]
[1761368736131,0.001,3926.1,3926.0,17.73679779]
[1761368749419,0.001,3926.1,3926.0,17.29509779]
[1761368751355,0.001,3926.1,3926.0,17.73479779]
[1761368760180,0.001,3926.5,3926.0,21.47196911]
[1761368760469,0.001,3926.9,3926.8,3.05348283]
[1761368760674,0.001,3926.9,3926.8,11.95320608]
[1761368760867,0.001,3926.9,3926.8,11.92774006]
[1761368761047,0.001,3926.9,3926.8,12.81428464]
[1761368761245,0.001,3926.9,3926.8,10.99739873]
[1761368761465,0.001,3926.9,3926.8,11.09935722]
[1761368761974,0.001,3926.9,3926.8,12.47394313]
[1761368762146,0.001,3926.9,3926.8,12.91624313]
[1761368765273,0.001,3926.9,3926.8,11.54165722]
[1761368765860,0.001,3926.9,3926.8,14.47144313]
[1761368766062,0.001,3926.9,3926.8,13.09685722]
[1761368766477,0.001,3926.9,3926.8,12.99489873]
[1761368766680,0.001,3926.9,3926.8,13.09684553]
[1761368769182,0.001,3926.9,3926.8,14.46824701]
[1761368769576,0.001,3926.9,3926.8,13.09684553]
[1761368771164,0.001,3926.9,3926.8,14.46793127]
[1761368771771,0.001,3926.9,3926.8,13.09684553]
[1761368776418,1e-08,3927.3,3927.2,12.08276609]
[1761368776619,1e-08,3927.3,3927.2,18.31041505]
[1761368776929,1e-08,3927.3,3927.2,17.53322503]
[1761368777228,1e-08,3927.3,3927.2,17.63516195]
[1761368779138,1e-08,3927.3,3927.2,21.47516195]
[1761368784915,1e-08,3927.3,3927.2,21.00896195]
[1761368785109,1e-08,3927.3,3927.2,21.47516195]
[1761368787414,1e-08,3927.7,3927.6,2.54608412]
[1761368787611,1e-08,3927.7,3927.6,14.02682908]
[1761368787930,1e-08,3927.7,3927.6,14.00136824]
[1761368788255,1e-08,3927.7,3927.6,15.81187453]
[1761368788756,1e-08,3927.7,3927.6,19.08269179]
[1761368788958,1e-08,3927.7,3927.6,18.61649179]
[1761368789120,1e-08,3927.7,3927.6,17.2454855]
[1761368789313,1e-08,3927.7,3927.6,18.61697378]
[1761368790257,1e-08,3927.7,3927.6,19.08317378]
[1761368790620,1e-08,3927.7,3927.6,17.7116855]